fUSD/lending_fUSD_20250319
["ID","MTS","AMOUNT","RATE_DAILY","PERIOD"]
[356403526,1742411441677,-500.0,0.00029878,2]
[356403527,1742411441686,-1098.45,0.00029878,2]
[356403528,1742411441696,-500.0,0.00029878,2]
[356403529,1742411441706,-670.97,0.00029878,2]
[356403530,1742411441715,-606.16,0.00029878,2]
[356403531,1742411441727,-350.04544567,0.00029878,2]
[356403532,1742411441736,-277.89679003,0.00029878,2]
[356403533,1742411441746,-1000.0,0.00029878,2]
[356403534,1742411441758,-548.49,0.00029878,2]
[356403535,1742411441767,-500.0,0.00029878,2]
[356403536,1742411441777,-500.0,0.00029878,2]
[356403537,1742411441786,-500.0,0.00029878,2]
[356403538,1742411441796,-500.0,0.00029878,2]
[356403539,1742411441805,-729.75,0.00029878,2]
[356403540,1742411441815,-500.0,0.00029878,2]
[356403541,1742411441824,-500.0,0.00029878,2]
[356403542,1742411441834,-746.47,0.00029878,2]
[356403543,1742411441843,-565.67683667,0.00029878,2]
[356403544,1742411441853,-500.0,0.00029878,2]
[356403545,1742411441863,-500.0,0.00029878,2]
[356403546,1742411441872,-500.0,0.00029878,2]
[356403547,1742411441882,-1158.38,0.00029878,2]
[356403548,1742411441891,-1820.89,0.00029878,2]
[356403549,1742411441902,-541.5177478,0.00029878,2]
[356403550,1742411441911,-833.44,0.00029878,2]
[356403551,1742411441922,-722.9,0.00029878,2]
[356403552,1742411441932,-1221.19,0.00029878,2]
[356403553,1742411441942,-280.30070602,0.00029878,2]
[356403554,1742411441952,-814.64,0.00029878,2]
[356403555,1742411441961,-1017.06,0.00029878,2]
[356403556,1742411441971,-638.27,0.00029878,2]
[356403557,1742411441980,-500.0,0.00029878,2]
[356403558,1742411441991,-259.28719554,0.00029878,2]
[356403559,1742411442001,-1531.86,0.00029878,2]
[356403560,1742411442011,-529.73,0.00029878,2]
[356403561,1742411442020,-1049.02,0.00029878,2]
[356403562,1742411442030,-1440.33,0.00029878,2]
[356403563,1742411442039,-517.74,0.00029878,2]
[356403564,1742411442049,-894.3,0.00029878,2]
[356403565,1742411442059,-1416.17,0.00029878,2]
[356403566,1742411442068,-500.0,0.00029878,2]
[356403567,1742411442078,-893.96,0.00029878,2]
[356403568,1742411442087,-500.0,0.00029878,2]
[356403569,1742411442097,-500.0,0.00029878,2]
[356403570,1742411442111,-500.0,0.00029878,2]
[356403571,1742411442121,-1012.69,0.00029878,2]
[356403572,1742411442130,-500.0,0.00029878,2]
[356403573,1742411442139,-1000.0,0.00029878,2]
[356403574,1742411442151,-1248.88,0.00029878,2]
[356403575,1742411442162,-594.9,0.00029878,2]
[356403576,1742411442171,-976.7,0.00029878,2]
[356403577,1742411442181,-632.75131355,0.00029878,2]
[356403578,1742411442191,-500.0,0.00029878,2]
[356403579,1742411442203,-1265.05,0.00029878,2]
[356403580,1742411442213,-500.0,0.00029878,2]
[356403581,1742411442222,-1175.04,0.00029878,2]
[356403582,1742411442232,-5250.51,0.00029878,2]
[356403583,1742411442241,-667.25,0.00029878,2]
[356403584,1742411442251,-500.0,0.00029878,2]
[356403585,1742411442261,-553.4,0.00029878,2]
[356403586,1742411442270,-696.96,0.00029878,2]
[356403587,1742411442280,-520.32045873,0.00029878,2]
[356403588,1742411442291,-500.0,0.00029878,2]
[356403589,1742411442301,-500.0,0.00029878,2]
[356403590,1742411442311,-1719.64,0.00029878,2]
[356403591,1742411442321,-500.0,0.00029878,2]
[356403592,1742411442331,-625.35,0.00029878,2]
[356403594,1742411442341,-500.0,0.00029878,2]
[356403596,1742411442351,-500.0,0.00029878,2]
[356403598,1742411442362,-819.2,0.00029878,2]
[356403600,1742411442371,-945.48,0.00029878,2]
[356403602,1742411442381,-500.0,0.00029878,2]
[356403604,1742411442392,-462.70760496,0.00029878,2]
[356403606,1742411442402,-789.02,0.00029878,2]
[356403608,1742411442412,-1601.17,0.00029878,2]
[356403610,1742411442423,-1059.2,0.00029878,2]
[356403612,1742411442432,-501.35,0.00029878,2]
[356403614,1742411442442,-1481.09,0.00029878,2]
[356403616,1742411442451,-500.0,0.00029878,2]
[356403618,1742411442461,-500.0,0.00029878,2]
[356403620,1742411442471,-500.0,0.00029878,2]
[356403622,1742411442481,-639.55,0.00029878,2]
[356403624,1742411442491,-1011.86,0.00029878,2]
[356403626,1742411442500,-556.8938794,0.00029878,2]
[356403627,1742411442509,-608.93,0.00029878,2]
[356403628,1742411442519,-500.0,0.00029878,2]
[356403629,1742411442528,-1431.21,0.00029878,2]
[356403630,1742411442538,-500.0,0.00029878,2]
[356403631,1742411442548,-711.53,0.00029878,2]
[356403632,1742411442559,-521.12,0.00029878,2]
[356403635,1742411442570,-500.0,0.00029878,2]
[356403637,1742411442580,-631.53,0.00029878,2]
[356403640,1742411442591,-499.67019429,0.00029878,2]
[356403642,1742411442600,-520.53,0.00029878,2]
[356403644,1742411442610,-518.29489672,0.00029878,2]
[356403646,1742411442619,-269.84954051,0.00029878,2]
[356403648,1742411442647,-241.60778411,0.00029878,2]
[356403649,1742411442657,-500.0,0.00029878,2]
[356403651,1742411442666,-1065.39,0.00029878,2]
[356403653,1742411442675,-500.0,0.00029878,2]
[356403654,1742411442685,-470.02629283,0.00029878,2]
[356403656,1742411442695,-466.76536722,0.00029878,2]
[356403657,1742411442704,-500.0,0.00029878,2]
[356403658,1742411442714,-500.0,0.00029878,2]
[356403659,1742411442724,-500.0,0.00029878,2]
[356403660,1742411442734,-1024.34,0.00029878,2]
[356403661,1742411442744,-572.20561068,0.00029878,2]
[356403662,1742411442763,-460.02438932,0.00029878,2]
[356403663,1742411442773,-408.43850263,0.00029878,2]
[356403664,1742411442790,-91.56149737,0.00029878,2]
[356403665,1742411442799,-537.92,0.00029878,2]
[356403666,1742411442810,-61.967961,0.00029878,2]
[356403673,1742411443375,-438.032039,0.00029878,2]
[356403675,1742411443385,-1073.84,0.00029878,2]
[356403677,1742411443395,-500.0,0.00029878,2]
[356403679,1742411443405,-1183.6,0.00029878,2]
[356403681,1742411443415,-500.0,0.00029878,2]
[356403683,1742411443425,-500.0,0.00029878,2]
[356403685,1742411443434,-500.0,0.00029878,2]
[356403687,1742411443444,-530.91,0.00029878,2]
[356403689,1742411443453,-7.41614239,0.00029878,2]
[356403691,1742411443465,-1209.84177395,0.00029878,2]
[356403693,1742411443477,-158.83208366,0.00029878,2]
[356403695,1742411443486,-208.30246384,0.00029878,2]
[356403697,1742411443498,-298.32753616,0.00029878,2]
[356403699,1742411443512,-427.38387181,0.00029878,2]
[356403701,1742411443524,-500.0,0.00029878,2]
[356403703,1742411443533,-151.0,0.00029878,7]
[356403705,1742411443543,-151.0,0.00029878,7]
[356403707,1742411443553,-500.0,0.00029878,2]
[356403709,1742411443566,-517.36,0.00029878,2]
[356403711,1742411443576,-1767.18,0.00029878,2]
[356403712,1742411443587,-170.95240167,0.00029878,2]
[356403713,1742411443596,-559.97,0.00029878,2]
[356403714,1742411443606,-500.0,0.00029878,2]
[356403715,1742411443615,-500.0,0.00029878,2]
[356403716,1742411443624,-1583.62,0.00029878,2]
[356403717,1742411443634,-1745.23,0.00029878,2]
[356403718,1742411443643,-178.72278489,0.00029878,2]
[356403719,1742411443652,-675.23,0.00029878,2]
[356403721,1742411443661,-658.95,0.00029878,2]
[356403722,1742411443670,-500.0,0.00029878,2]
[356403723,1742411443680,-500.0,0.00029878,2]
[356403724,1742411443690,-803.33,0.00029878,2]
[356403725,1742411443699,-539.03697689,0.00029878,2]
[356403726,1742411443708,-1188.96,0.00029878,2]
[356403727,1742411443717,-522.94759833,0.00029878,2]
[356403728,1742411443726,-500.0,0.00029878,2]
[356403729,1742411443736,-500.0,0.00029878,2]
[356403730,1742411443745,-500.0,0.00029878,2]
[356403731,1742411443754,-256.89754761,0.00029878,2]
[356403732,1742411443767,-243.10245239,0.00029878,2]
[356403733,1742411443776,-66.71637691,0.00029878,2]
[356403734,1742411443789,-433.28362309,0.00029878,2]
[356403735,1742411443799,-1422.77,0.00029878,2]
[356403736,1742411443809,-522.15128651,0.00029878,2]
[356403737,1742411443818,-593.57,0.00029878,2]
[356403738,1742411443828,-914.93,0.00029878,2]
[356403739,1742411443837,-1247.21,0.00029878,2]
[356403740,1742411443847,-1787.73,0.00029878,2]
[356403741,1742411443857,-500.0,0.00029878,2]
[356403742,1742411443867,-896.64,0.00029878,2]
[356403743,1742411443877,-1748.55,0.00029878,2]
[356403744,1742411443886,-500.0,0.00029878,2]
[356403745,1742411443896,-751.57,0.00029878,2]
[356403746,1742411443906,-500.0,0.00029878,2]
[356403747,1742411443916,-1022.28,0.00029878,2]
[356403748,1742411443925,-1108.04,0.00029878,2]
[356403749,1742411443935,-913.19,0.00029878,2]
[356403750,1742411443945,-885.67,0.00029878,2]
[356403751,1742411443954,-730.05,0.00029878,2]
[356403752,1742411443964,-500.0,0.00029878,2]
[356403753,1742411443974,-1299.01,0.00029878,2]
[356403754,1742411443983,-558.48004149,0.00029878,2]
[356403755,1742411443993,-500.0,0.00029878,2]
[356403756,1742411444003,-500.0,0.00029878,2]
[356403757,1742411444013,-703.05,0.00029878,2]
[356403758,1742411444023,-500.0,0.00029878,2]
[356403759,1742411444033,-500.0,0.00029878,2]
[356403760,1742411444042,-500.0,0.00029878,2]
[356403761,1742411444052,-500.0,0.00029878,2]
[356403762,1742411444061,-500.0,0.00029878,2]
[356403763,1742411444070,-1925.2,0.00029878,2]
[356403764,1742411444080,-500.0,0.00029878,2]
[356403765,1742411444090,-500.0,0.00029878,2]
[356403766,1742411444100,-1079.01,0.00029878,2]
[356403767,1742411444113,-500.0,0.00029878,2]
[356403768,1742411444124,-500.0,0.00029878,2]
[356403769,1742411444134,-507.24020024,0.00029878,2]
[356403770,1742411444144,-500.0,0.00029878,2]
[356403771,1742411444155,-500.0,0.00029878,2]
[356403772,1742411444164,-500.0,0.00029878,2]
[356403773,1742411444175,-500.0,0.00029878,2]
[356403774,1742411444187,-822.72,0.00029878,2]
[356403775,1742411444196,-566.17,0.00029878,2]
[356403776,1742411444206,-500.0,0.00029878,2]
[356403777,1742411444216,-500.0,0.00029878,2]
[356403778,1742411444225,-500.0,0.00029878,2]
[356403779,1742411444235,-500.0,0.00029878,2]
[356403780,1742411444243,-499.55270008,0.00029878,2]
[356403781,1742411444253,-500.0,0.00029878,2]
[356403782,1742411444262,-500.0,0.00029878,2]
[356403783,1742411444272,-446.38555639,0.00029878,2]
[356403784,1742411444281,-1909.24,0.00029878,2]
[356403785,1742411444291,-500.0,0.00029878,2]
[356403786,1742411444300,-603.97,0.00029878,2]
[356403787,1742411444310,-506.59745721,0.00029878,2]
[356403788,1742411444319,-500.0,0.00029878,2]
[356403789,1742411444329,-378.95967339,0.00029878,2]
[356403790,1742411444339,-500.0,0.00029878,2]
[356403791,1742411444350,-1076.77,0.00029878,2]
[356403792,1742411444360,-504.20159977,0.00029878,2]
[356403793,1742411444370,-556.7,0.00029878,2]
[356403794,1742411444380,-500.0,0.00029878,2]
[356403795,1742411444391,-500.0,0.00029878,2]
[356403796,1742411444401,-500.0,0.00029878,2]
[356403797,1742411444413,-735.81,0.00029878,2]
[356403798,1742411444423,-500.0,0.00029878,2]
[356403799,1742411444433,-500.0,0.00029878,2]
[356403800,1742411444443,-511.77057958,0.00029878,2]
[356403801,1742411444454,-885.72,0.00029878,2]
[356403802,1742411444464,-500.0,0.00029878,2]
[356403803,1742411444473,-500.0,0.00029878,2]
[356403804,1742411444483,-500.0,0.00029878,2]
[356403805,1742411444492,-508.84,0.00029878,2]
[356403806,1742411444502,-500.0,0.00029878,2]
[356403807,1742411444511,-500.0,0.00029878,2]
[356403808,1742411444521,-1256.17,0.00029878,2]
[356403809,1742411444531,-681.15,0.00029878,2]
[356403810,1742411444541,-500.0,0.00029878,2]
[356403811,1742411444550,-1300.25,0.00029878,2]
[356403812,1742411444560,-686.49,0.00029878,2]
[356403813,1742411444569,-500.0,0.00029878,2]
[356403814,1742411444579,-506.03205034,0.00029878,2]
[356403815,1742411444588,-500.0,0.00029878,2]
[356403816,1742411444597,-595.24,0.00029878,2]
[356403817,1742411444606,-1182.8,0.00029878,2]
[356403818,1742411444615,-918.13,0.00029878,2]
[356403819,1742411444625,-500.0,0.00029878,2]
[356403820,1742411444635,-500.0,0.00029878,2]
[356403821,1742411444645,-1020.58,0.00029878,2]
[356403822,1742411444655,-500.0,0.00029878,2]
[356403823,1742411444664,-523.40302694,0.00029878,7]
[356403824,1742411444674,-764.96,0.00029878,2]
[356403825,1742411444683,-643.44,0.00029878,2]
[356403826,1742411444693,-500.0,0.00029878,2]
[356403827,1742411444703,-500.0,0.00029878,2]
[356403828,1742411444712,-1069.56,0.00029878,2]
[356403829,1742411444721,-617.23329324,0.00029878,2]
[356403830,1742411444731,-714.84,0.00029878,2]
[356403831,1742411444742,-500.0,0.00029878,2]
[356403832,1742411444751,-500.0,0.00029878,2]
[356403833,1742411444761,-500.0,0.00029878,2]
[356403834,1742411444770,-500.0,0.00029878,2]
[356403835,1742411444779,-637.47617674,0.00029878,2]
[356403836,1742411444789,-500.0,0.00029878,2]
[356403837,1742411444798,-500.0,0.00029878,2]
[356403838,1742411444807,-922.55,0.00029878,2]
[356403839,1742411444817,-609.95,0.00029878,2]
[356403840,1742411444826,-916.97,0.00029878,2]
[356403841,1742411444836,-500.0,0.00029878,2]
[356403842,1742411444845,-617.17,0.00029878,2]
[356403843,1742411444855,-647.24,0.00029878,2]
[356403844,1742411444864,-1185.59,0.00029878,2]
[356403845,1742411444874,-500.0,0.00029878,2]
[356403846,1742411444884,-782.18,0.00029878,2]
[356403847,1742411444894,-500.0,0.00029878,2]
[356403848,1742411444905,-500.0,0.00029878,2]
[356403849,1742411444916,-500.0,0.00029878,2]
[356403850,1742411444926,-535.4,0.00029878,2]
[356403851,1742411444935,-1423.46,0.00029878,2]
[356403852,1742411444945,-500.0,0.00029878,2]
[356403853,1742411444954,-500.0,0.00029878,2]
[356403854,1742411444963,-500.0,0.00029878,2]
[356403855,1742411444972,-500.0,0.00029878,2]
[356403856,1742411444981,-500.0,0.00029878,2]
[356403857,1742411444991,-1817.01,0.00029878,2]
[356403858,1742411445001,-267.0461949,0.00029878,2]
[356403859,1742411445017,-232.9538051,0.00029878,2]
[356403860,1742411445026,-500.0,0.00029878,2]
[356403861,1742411445035,-893.92,0.00029878,2]
[356403862,1742411445044,-2285.94,0.00029878,2]
[356403863,1742411445054,-762.53,0.00029878,2]
[356403864,1742411445063,-500.0,0.00029878,2]
[356403865,1742411445074,-500.0,0.00029878,2]
[356403866,1742411445083,-500.0,0.00029878,2]
[356403867,1742411445092,-1372.39,0.00029878,2]
[356403868,1742411445103,-500.0,0.00029878,2]
[356403869,1742411445112,-514.83,0.00029878,2]
[356403870,1742411445124,-500.0,0.00029878,2]
[356403871,1742411445133,-454.12274279,0.00029878,2]
[356403876,1742411445560,-349.13014569,0.00028426,2]
[356403877,1742411445572,-2076.65999993,0.00028426,2]
[356403878,1742411445584,-10083.3232494,0.00028426,2]
[356403879,1742411445952,-6046.48768001,0.00028426,2]
[356403880,1742411446015,-8150.27706734,0.00028426,2]
[356403881,1742411446025,-45.87725721,0.00029878,2]
[356403882,1742411446035,-624.75534075,0.00029878,2]
[356403883,1742411446045,-500.0,0.00029878,2]
[356403884,1742411446055,-60261.5553097,0.00029879,3]
[356403889,1742411446171,-2404.8,0.00029879,3]
[356403890,1742411446185,-51340.9103573,0.00029879,3]
[356403891,1742411446196,-18449.6862222,0.00029879,3]
[356403892,1742411446206,-204.0,0.0002988,2]
[356403893,1742411446217,-43848.9483334,0.0002988,3]
[356403894,1742411446228,-46124.2155556,0.0002988,3]
[356403895,1742411446240,-32138.59460679,0.0002988,2]
[356403896,1742411446251,-1497.6950072,0.00029886,120]
[356403897,1742411446262,-500.0,0.00029888,2]
[356403898,1742411446274,-500.0,0.00029888,2]
[356403899,1742411446284,-500.0,0.00029888,2]
[356403900,1742411446293,-500.0,0.00029889,2]
[356403901,1742411446304,-500.0,0.00029889,2]
[356403902,1742411446313,-500.0,0.00029889,2]
[356403903,1742411446323,-500.0,0.00029889,2]
[356403904,1742411446333,-500.0,0.00029889,2]
[356403905,1742411446342,-500.0,0.00029889,2]
[356403906,1742411446353,-500.0,0.00029889,2]
[356403907,1742411446362,-500.0,0.00029889,2]
[356403908,1742411446372,-500.0,0.00029889,2]
[356403909,1742411446382,-500.0,0.00029889,2]
[356403910,1742411446391,-500.0,0.00029889,2]
[356403911,1742411446401,-500.0,0.00029889,2]
[356403912,1742411446411,-500.0,0.00029889,2]
[356403913,1742411446420,-500.0,0.00029889,2]
[356403914,1742411446430,-500.0,0.00029889,2]
[356403915,1742411446439,-504.66513673,0.00029889,2]
[356403916,1742411446449,-500.0,0.00029889,2]
[356403917,1742411446458,-500.0,0.00029889,2]
[356403918,1742411446468,-506.25029747,0.00029889,2]
[356403919,1742411446477,-500.0,0.00029889,2]
[356403920,1742411446487,-500.0,0.00029889,2]
[356403921,1742411446496,-500.0,0.00029889,2]
[356403922,1742411446506,-500.0,0.00029889,2]
[356403923,1742411446515,-500.0,0.00029889,2]
[356403924,1742411446525,-516.98758452,0.00029889,2]
[356403925,1742411446534,-500.0,0.00029889,2]
[356403926,1742411446544,-500.0,0.00029889,2]
[356403927,1742411446553,-500.0,0.00029889,2]
[356403928,1742411446563,-642.21,0.00029889,2]
[356403929,1742411446573,-500.0,0.00029889,2]
[356403930,1742411446583,-166.94441605,0.00029889,2]
[356403931,1742411446593,-500.0,0.00029889,2]
[356403932,1742411446602,-526.68032025,0.00029889,2]
[356403933,1742411446612,-500.0,0.00029889,2]
[356403934,1742411446621,-1131.52,0.00029889,2]
[356403935,1742411446631,-500.0,0.00029889,2]
[356403936,1742411446640,-849.25,0.00029889,2]
[356403937,1742411446650,-500.0,0.00029889,2]
[356403938,1742411446659,-526.16,0.00029889,2]
[356403939,1742411446669,-515.82345615,0.00029889,2]
[356403940,1742411446678,-500.0,0.00029889,2]
[356403941,1742411446687,-500.0,0.00029889,2]
[356403942,1742411446696,-660.86,0.00029889,2]
[356403943,1742411446706,-500.0,0.00029889,2]
[356403944,1742411446715,-514.40782792,0.00029889,2]
[356403945,1742411446724,-1280.26,0.00029889,2]
[356403946,1742411446734,-796.56,0.00029889,2]
[356403947,1742411446743,-505.78032917,0.00029889,2]
[356403948,1742411446753,-500.0,0.00029889,2]
[356403949,1742411446761,-500.0,0.00029889,2]
[356403950,1742411446770,-500.0,0.00029889,2]
[356403951,1742411446780,-612.51895451,0.00029889,2]
[356403952,1742411446790,-500.0,0.00029889,2]
[356403953,1742411446799,-500.0,0.00029889,2]
[356403954,1742411446809,-500.0,0.00029889,2]
[356403955,1742411446819,-500.0,0.00029889,2]
[356403956,1742411446828,-579.17,0.00029889,2]
[356403957,1742411446838,-581.46,0.00029889,2]
[356403958,1742411446847,-500.0,0.00029889,2]
[356403959,1742411446857,-1853.41,0.00029889,2]
[356403960,1742411446867,-500.0,0.00029889,2]
[356403961,1742411446877,-500.0,0.00029889,2]
[356403962,1742411446886,-836.92,0.00029889,2]
[356403963,1742411446896,-500.0,0.00029889,2]
[356403964,1742411446906,-500.0,0.00029889,2]
[356403965,1742411446916,-500.0,0.00029889,2]
[356403966,1742411446925,-500.0,0.00029889,2]
[356403967,1742411446935,-500.0,0.00029889,2]
[356403968,1742411446945,-500.0,0.00029889,2]
[356403969,1742411446955,-1161.9,0.00029889,2]
[356403970,1742411446965,-500.0,0.00029889,2]
[356403971,1742411446976,-500.0,0.00029889,2]
[356403972,1742411446986,-500.0,0.00029889,2]
[356403973,1742411446996,-500.0,0.00029889,2]
[356403974,1742411447007,-500.0,0.00029889,2]
[356403975,1742411447016,-500.0,0.00029889,2]
[356403976,1742411447026,-500.0,0.00029889,2]
[356403977,1742411447035,-774.15,0.00029889,2]
[356403978,1742411447045,-500.0,0.00029889,2]
[356403979,1742411447055,-500.0,0.00029889,2]
[356403980,1742411447066,-500.0,0.00029889,2]
[356403981,1742411447076,-879.71,0.00029889,2]
[356403982,1742411447086,-500.0,0.00029889,2]
[356403983,1742411447096,-500.0,0.00029889,2]
[356403984,1742411447109,-500.0,0.00029889,2]
[356403985,1742411447119,-500.0,0.00029889,2]
[356403986,1742411447129,-850.45,0.00029889,2]
[356403987,1742411447139,-1131.06,0.00029889,2]
[356403988,1742411447150,-500.0,0.00029889,2]
[356403989,1742411447159,-623.30118095,0.00029889,2]
[356403990,1742411447169,-538.49,0.00029889,2]
[356403991,1742411447179,-500.0,0.00029889,2]
[356403992,1742411447189,-500.0,0.00029889,2]
[356403993,1742411447202,-500.0,0.00029889,2]
[356403994,1742411447212,-555.7,0.00029889,2]
[356403995,1742411447222,-605.02335912,0.00029889,2]
[356403996,1742411447231,-500.0,0.00029889,2]
[356403997,1742411447241,-500.0,0.00029889,2]
[356403998,1742411447251,-500.0,0.00029889,2]
[356403999,1742411447260,-500.0,0.00029889,2]
[356404000,1742411447270,-500.0,0.00029889,2]
[356404001,1742411447280,-500.0,0.00029889,2]
[356404002,1742411447290,-500.0,0.00029889,2]
[356404003,1742411447299,-500.0,0.00029889,2]
[356404004,1742411447309,-881.07,0.00029889,2]
[356404005,1742411447319,-500.0,0.00029889,2]
[356404006,1742411447328,-551.61,0.00029889,2]
[356404007,1742411447338,-500.0,0.00029889,2]
[356404008,1742411447348,-500.0,0.00029889,2]
[356404009,1742411447358,-624.48233118,0.00029889,2]
[356404010,1742411447369,-500.0,0.00029889,2]
[356404011,1742411447378,-500.0,0.00029889,2]
[356404012,1742411447391,-636.29,0.00029889,2]
[356404013,1742411447401,-500.0,0.00029889,2]
[356404014,1742411447411,-500.0,0.00029889,2]
[356404015,1742411447422,-661.32,0.00029889,2]
[356404016,1742411447432,-500.0,0.00029889,2]
[356404017,1742411447442,-507.3702819,0.00029889,2]
[356404018,1742411447452,-500.0,0.00029889,2]
[356404019,1742411447465,-500.0,0.00029889,2]
[356404020,1742411447475,-500.0,0.00029889,2]
[356404021,1742411447485,-500.0,0.00029889,2]
[356404022,1742411447495,-514.68,0.00029889,2]
[356404023,1742411447505,-500.0,0.00029889,2]
[356404024,1742411447515,-500.0,0.00029889,2]
[356404025,1742411447525,-500.0,0.00029889,2]
[356404026,1742411447535,-509.09654874,0.00029889,2]
[356404027,1742411447545,-928.57,0.00029889,2]
[356404028,1742411447555,-500.0,0.00029889,2]
[356404029,1742411447565,-500.0,0.00029889,2]
[356404030,1742411447575,-500.0,0.00029889,2]
[356404031,1742411447586,-502.65484233,0.00029889,2]
[356404032,1742411447596,-500.0,0.00029889,2]
[356404033,1742411447605,-500.0,0.00029889,2]
[356404034,1742411447615,-768.87,0.00029889,2]
[356404035,1742411447625,-509.95790391,0.00029889,60]
[356404036,1742411447634,-500.0,0.00029889,2]
[356404037,1742411447644,-583.07,0.00029889,2]
[356404038,1742411447654,-500.0,0.00029889,2]
[356404039,1742411447664,-500.0,0.00029889,2]
[356404040,1742411447675,-500.0,0.00029889,2]
[356404041,1742411447685,-500.0,0.00029889,2]
[356404042,1742411447695,-500.0,0.00029889,2]
[356404043,1742411447705,-500.0,0.00029889,2]
[356404044,1742411447715,-508.49,0.00029889,2]
[356404045,1742411447725,-1340.66,0.00029889,2]
[356404046,1742411447734,-500.0,0.00029889,2]
[356404047,1742411447743,-500.0,0.00029889,2]
[356404048,1742411447753,-500.0,0.00029889,2]
[356404049,1742411447763,-500.0,0.00029889,2]
[356404050,1742411447772,-500.0,0.00029889,2]
[356404051,1742411447782,-798.79,0.00029889,2]
[356404052,1742411447792,-500.0,0.00029889,2]
[356404053,1742411447802,-906.4,0.00029889,2]
[356404054,1742411447812,-550.29,0.00029889,2]
[356404055,1742411447822,-500.0,0.00029889,2]
[356404056,1742411447832,-1379.72,0.00029889,2]
[356404057,1742411447843,-500.0,0.00029889,2]
[356404058,1742411447853,-1100.07,0.00029889,2]
[356404059,1742411447864,-500.0,0.00029889,2]
[356404060,1742411447875,-500.0,0.00029889,2]
[356404061,1742411447885,-788.92,0.00029889,2]
[356404062,1742411447895,-650.49,0.00029889,2]
[356404063,1742411447906,-500.0,0.00029889,2]
[356404064,1742411447916,-937.6,0.00029889,2]
[356404065,1742411447927,-500.0,0.00029889,2]
[356404066,1742411447937,-500.0,0.00029889,2]
[356404067,1742411447947,-1066.44,0.00029889,2]
[356404068,1742411447957,-500.0,0.00029889,2]
[356404069,1742411447967,-500.0,0.00029889,2]
[356404070,1742411447977,-500.0,0.00029889,2]
[356404071,1742411447987,-500.0,0.00029889,2]
[356404072,1742411447997,-500.0,0.00029889,2]
[356404073,1742411448007,-567.67768816,0.00029889,2]
[356404074,1742411448017,-561.36,0.00029889,2]
[356404075,1742411448027,-872.25,0.00029889,2]
[356404076,1742411448036,-500.0,0.00029889,2]
[356404077,1742411448046,-300.0,0.00029889,2]
[356404078,1742411448056,-500.0,0.00029889,2]
[356404079,1742411448066,-500.0,0.00029889,2]
[356404080,1742411448076,-1076.32,0.00029889,2]
[356404081,1742411448086,-912.8,0.00029889,2]
[356404082,1742411448097,-500.0,0.00029889,2]
[356404083,1742411448108,-500.0,0.00029889,2]
[356404084,1742411448119,-500.0,0.00029889,2]
[356404085,1742411448129,-704.54,0.00029889,2]
[356404086,1742411448139,-500.0,0.00029889,2]
[356404087,1742411448151,-945.86,0.00029889,2]
[356404088,1742411448162,-901.98,0.00029889,2]